bitfinex/quotes_BTCUSD_20240717
["timestamp","ask_amount","ask_price","bid_price","bid_amount"]
[1721251055414,1.59169506,64227.0,64226.0,0.010174]
[1721251055648,1.90309006,64227.0,64226.0,0.010174]
[1721251058913,2.41228506,64227.0,64226.0,0.010174]
[1721251060729,2.31776753,64227.0,64226.0,0.010174]
[1721251060966,2.41302056,64227.0,64226.0,0.010174]
[1721251061721,0.59353,64216.0,64184.0,0.05]
[1721251061923,0.155759,64202.0,64188.0,0.155792]
[1721251062124,0.155759,64202.0,64189.0,0.34618811]
[1721251062330,0.002794,64201.0,64191.0,0.05]
[1721251062530,0.311478,64210.0,64193.0,0.205779]
[1721251062754,0.155748,64206.0,64194.0,0.15438174]
[1721251062870,0.311488,64208.0,64194.0,0.15438174]
[1721251062871,0.1,64205.0,64194.0,0.15438174]
[1721251063074,0.1,64205.0,64195.0,0.06717327]
[1721251063488,0.255752,64205.0,64195.0,0.06717327]
[1721251063691,0.002794,64202.0,64195.0,0.06717327]
[1721251063896,0.155756,64203.0,64194.0,0.15838174]
[1721251064115,0.002794,64202.0,64194.0,0.15838174]
[1721251064313,0.002794,64202.0,64194.0,0.15438174]
[1721251064515,0.001,64205.0,64195.0,0.012]
[1721251064715,0.155758,64202.0,64197.0,0.0806]
[1721251064915,0.155758,64202.0,64198.0,0.03039817]
[1721251065096,0.156756,64203.0,64198.0,0.03039817]
[1721251065579,0.155758,64202.0,64198.0,0.03039817]
[1721251065776,0.155756,64203.0,64198.0,0.03039817]
[1721251066125,0.155751,64205.0,64198.0,0.03039817]
[1721251066322,0.001,64202.0,64199.0,0.03303799]
[1721251066529,0.155762,64201.0,64199.0,0.03303799]
[1721251066727,0.001,64202.0,64197.0,0.0806]
[1721251066728,0.311517,64202.0,64197.0,0.0806]
[1721251066927,0.155763,64200.0,64197.0,0.0806]
[1721251067132,0.155763,64200.0,64198.0,0.004]
[1721251067780,0.155763,64200.0,64199.0,0.012]
[1721251067993,0.155763,64200.0,64199.0,0.01576]
[1721251068334,0.156763,64200.0,64199.0,0.01576]
[1721251069116,0.157763,64200.0,64199.0,0.02776]
[1721251069344,0.780815,64200.0,64199.0,0.02776]
[1721251069827,0.780815,64200.0,64199.0,0.03176]
[1721251069828,0.781815,64200.0,64199.0,0.03176]
[1721251070149,0.781815,64200.0,64199.0,0.02776]
[1721251070150,0.779815,64200.0,64199.0,0.02776]
[1721251070352,0.778815,64200.0,64199.0,0.01576]
[1721251070625,0.778815,64200.0,64197.0,0.0806]
[1721251070626,0.75384,64198.0,64197.0,0.0806]
[1721251070807,1.065376,64198.0,64197.0,0.0806]
[1721251070983,1.165376,64198.0,64197.0,0.0806]
[1721251071582,1.165376,64198.0,64197.0,0.1412]
[1721251071583,0.1,64198.0,64197.0,0.1412]
[1721251071784,0.255768,64198.0,64197.0,0.15532]
[1721251071999,0.567304,64198.0,64197.0,0.09472]
[1721251072202,0.87984,64198.0,64197.0,0.10672]
[1721251072613,0.568304,64198.0,64197.0,0.10672]
[1721251072991,0.87984,64198.0,64197.0,0.10672]
[1721251073623,0.87884,64198.0,64197.0,0.09472]
[1721251073818,0.568304,64198.0,64197.0,0.09872]
[1721251074056,0.569304,64198.0,64197.0,0.10872]
[1721251074488,0.568304,64198.0,64197.0,0.10472]
[1721251074690,0.569304,64198.0,64197.0,0.10872]
[1721251075263,0.102,64198.0,64197.0,0.10872]
[1721251075464,0.002,64198.0,64197.0,0.10872]
[1721251075592,0.102,64198.0,64197.0,0.10872]
[1721251076787,0.102,64198.0,64197.0,0.17082]
[1721251077004,0.002,64198.0,64197.0,0.17082]
[1721251077231,0.102,64198.0,64197.0,0.17082]
[1721251077641,0.002,64198.0,64197.0,0.63674274]
[1721251077839,0.002,64198.0,64197.0,1.15405374]
[1721251078056,0.002,64198.0,64197.0,1.46559474]
[1721251078535,0.002,64198.0,64197.0,1.15405374]
[1721251078784,0.002,64198.0,64197.0,1.56357233]
[1721251078987,0.002,64198.0,64197.0,1.56356602]
[1721251079366,0.002,64198.0,64197.0,1.46559474]
[1721251079569,0.002,64198.0,64197.0,1.56353156]
[1721251079806,0.001,64198.0,64197.0,1.55953156]
[1721251080008,0.002794,64215.0,64207.0,0.0626]
[1721251080239,0.46304871,64216.0,64209.0,0.0787]
[1721251080450,0.722832,64223.0,64209.0,0.23308174]
[1721251080451,0.155717,64219.0,64209.0,0.23308174]
[1721251080671,0.1,64218.0,64210.0,0.21698174]
[1721251080883,0.00083,64227.0,64212.0,0.05]
[1721251081166,0.00083,64227.0,64214.0,0.155728]
[1721251081413,0.00083,64227.0,64218.0,0.0752]
[1721251081414,0.156528,64227.0,64218.0,0.0752]
[1721251081676,0.00083,64227.0,64219.0,0.0631]
[1721251081941,0.00083,64227.0,64223.0,0.0631]
[1721251082164,0.00083,64227.0,64224.0,0.0752]
[1721251082994,0.00083,64227.0,64225.0,0.0635]
[1721251083194,0.00083,64227.0,64226.0,0.07951376]
[1721251083320,0.00083,64227.0,64226.0,0.76749534]
[1721251083524,0.00083,64227.0,64226.0,0.86350127]
[1721251083746,0.00083,64227.0,64226.0,0.55210127]
[1721251083747,0.00283,64227.0,64226.0,0.55210127]
[1721251083948,0.00083,64227.0,64226.0,0.55160127]
[1721251084391,0.00183,64227.0,64226.0,0.56260127]
[1721251084838,0.00283,64227.0,64226.0,0.93400127]
[1721251085043,0.00283,64227.0,64226.0,0.57260127]
[1721251085447,0.00283,64227.0,64226.0,0.93400127]
[1721251086423,0.00283,64227.0,64226.0,1.24540127]
[1721251086830,0.00183,64227.0,64226.0,1.23540127]
[1721251087149,0.00083,64227.0,64226.0,1.22440127]
[1721251087494,0.00083,64227.0,64226.0,1.23840127]
[1721251087711,0.00083,64227.0,64226.0,1.54980127]
[1721251088308,0.00183,64227.0,64226.0,1.56080127]
[1721251089371,0.00183,64227.0,64226.0,1.57480127]
[1721251090009,0.00183,64227.0,64226.0,1.59780127]
[1721251090372,0.00183,64227.0,64226.0,0.90200127]
[1721251091318,0.00183,64227.0,64226.0,0.43490127]
[1721251091751,0.00183,64227.0,64226.0,0.59060127]
[1721251092793,0.00183,64227.0,64226.0,0.43490127]
[1721251093988,0.00183,64227.0,64226.0,0.33578174]
[1721251095435,0.00183,64227.0,64226.0,0.80288174]
[1721251095634,0.00183,64227.0,64226.0,0.85288174]
[1721251095807,0.00183,64227.0,64226.0,0.80288174]
[1721251096222,0.00183,64227.0,64226.0,0.85288174]
[1721251096419,0.00183,64227.0,64226.0,0.96931011]
[1721251096618,0.00183,64227.0,64226.0,1.28071011]
[1721251096882,0.00183,64227.0,64226.0,1.30371011]
[1721251097012,0.00183,64227.0,64226.0,0.91931011]
[1721251097197,0.00183,64227.0,64226.0,0.96931011]
[1721251097396,0.00183,64227.0,64226.0,1.28071011]
[1721251097598,0.00183,64227.0,64226.0,1.27571011]
[1721251098879,0.00183,64227.0,64226.0,1.92151011]
[1721251099077,0.00183,64227.0,64226.0,1.61011011]
[1721251104415,0.00183,64227.0,64226.0,1.56011011]
[1721251104729,0.00183,64227.0,64226.0,1.78361011]
[1721251105897,0.00183,64227.0,64226.0,1.44921011]
[1721251106018,0.00183,64227.0,64226.0,0.60291011]
[1721251107678,0.00183,64227.0,64226.0,0.91431011]
[1721251109366,0.00183,64227.0,64226.0,1.01309547]
[1721251109567,0.00183,64227.0,64226.0,1.68589547]
[1721251109765,0.00183,64227.0,64226.0,1.70889547]
[1721251109966,0.00183,64227.0,64226.0,2.02029547]
[1721251110371,0.00183,64227.0,64226.0,1.70889547]
[1721251110769,0.00183,64227.0,64226.0,1.39749547]
[1721251111188,0.00183,64227.0,64226.0,1.61011011]
[1721251111388,0.00183,64227.0,64226.0,1.70779699]
[1721251111833,0.00183,64227.0,64226.0,1.39639699]
[1721251112214,0.00183,64227.0,64226.0,1.39612329]
[1721251112505,0.00183,64227.0,64226.0,1.70752329]
[1721251113752,0.00183,64227.0,64226.0,2.21892329]
[1721251114156,0.00183,64227.0,64226.0,2.28355368]
[1721251114568,0.00083,64227.0,64226.0,2.25727964]
[1721251114710,0.00083,64227.0,64226.0,2.65467964]
[1721251114890,0.00183,64227.0,64226.0,2.66867964]
[1721251115300,0.002794,64254.0,64247.0,0.155647]
[1721251115474,0.0621,64255.0,64248.0,0.40269384]
[1721251116963,0.002794,64278.0,64248.0,0.40269384]
[1721251116964,0.0621,64259.0,64249.0,0.0531125]
[1721251117165,0.0621,64259.0,64248.0,0.24704784]
[1721251117166,0.0621,64259.0,64254.0,0.15563]
[1721251117412,0.0621,64259.0,64255.0,0.15438174]
[1721251117630,0.0621,64259.0,64256.0,0.09325577]
[1721251117854,0.0621,64259.0,64257.0,0.15438174]
[1721251118491,0.0611,64264.0,64257.0,0.31000474]
[1721251118724,0.0826,64267.0,64263.0,0.155609]
[1721251118930,0.0826,64267.0,64259.0,0.311238]
[1721251118931,0.00835,64268.0,64264.0,0.15438174]
[1721251121254,0.00835,64268.0,64267.0,0.466801]
[1721251121477,0.00835,64268.0,64267.0,0.37710001]
[1721251121679,0.00835,64268.0,64267.0,0.68830101]
[1721251122831,0.001,64268.0,64267.0,1.01150201]
[1721251123062,0.001,64268.0,64267.0,1.21500201]
[1721251123768,0.001,64268.0,64267.0,1.16500201]
[1721251124248,0.0611,64277.0,64271.0,0.155589]
[1721251124494,0.0611,64277.0,64272.0,0.26967934]
[1721251124937,0.0611,64277.0,64273.0,0.155585]
[1721251125160,0.0611,64277.0,64274.0,0.15438174]
[1721251126072,0.0361,64277.0,64274.0,0.15438174]
[1721251127966,0.0804,64276.0,64274.0,0.15838174]
[1721251128197,0.0804,64276.0,64275.0,0.01643817]
[1721251130992,0.0804,64276.0,64275.0,0.01943817]
[1721251133293,0.0804,64276.0,64275.0,0.17381991]
[1721251133517,0.03693,64277.0,64275.0,0.17381991]
[1721251133745,0.03693,64277.0,64276.0,0.17236373]
[1721251134453,0.00083,64277.0,64276.0,0.17236373]
[1721251135599,0.00083,64277.0,64276.0,0.17436373]
[1721251136079,0.14193,64277.0,64276.0,0.01998199]
[1721251136297,0.14193,64277.0,64276.0,0.002]
[1721251136769,0.14193,64277.0,64272.0,0.006]
[1721251137015,0.14193,64277.0,64273.0,0.15438174]
[1721251140551,0.155579,64276.0,64273.0,0.15438174]
[1721251140760,0.14193,64277.0,64274.0,0.01603817]
[1721251140937,0.14193,64277.0,64274.0,0.17041991]
[1721251141138,0.155581,64275.0,64274.0,0.01603817]
[1721251141389,0.221086,64273.0,64272.0,0.006]
[1721251143539,0.221086,64273.0,64272.0,0.01]
[1721251144370,0.92013,64273.0,64272.0,0.01]
[1721251145474,0.608958,64273.0,64272.0,0.01]
[1721251145906,0.00083,64277.0,64272.0,0.31996974]
[1721251146112,0.00083,64277.0,64273.0,0.22519761]
[1721251148736,0.00083,64277.0,64273.0,0.38078361]
[1721251149724,0.00083,64277.0,64273.0,0.38578361]
[1721251150682,0.00083,64277.0,64273.0,0.38078361]
[1721251150892,0.00083,64277.0,64273.0,0.38578361]
[1721251151095,0.00083,64277.0,64274.0,0.25639816]
[1721251151284,0.00083,64277.0,64275.0,0.15438174]
[1721251151635,0.00183,64277.0,64275.0,0.15438174]
[1721251152850,0.00083,64277.0,64275.0,0.15438174]
[1721251153252,0.00183,64277.0,64275.0,0.15438174]
[1721251153463,0.00183,64277.0,64276.0,0.08077748]
[1721251153660,0.00083,64277.0,64276.0,0.23515922]
[1721251154128,0.00183,64277.0,64276.0,0.23515922]
[1721251154515,0.00083,64277.0,64276.0,0.23515922]
[1721251154917,0.00183,64277.0,64276.0,0.24415922]
[1721251155554,0.00183,64277.0,64276.0,0.39973822]
[1721251156715,0.00183,64277.0,64276.0,0.71089622]
[1721251160803,0.00183,64277.0,64276.0,0.71180922]
[1721251161193,0.00183,64277.0,64276.0,1.02296722]
[1721251164594,0.00183,64277.0,64276.0,1.03396722]
[1721251170531,0.00183,64277.0,64276.0,1.12886358]
[1721251170731,0.00183,64277.0,64276.0,1.03396722]
[1721251173576,0.00183,64277.0,64276.0,0.41165122]
[1721251173756,0.00183,64277.0,64276.0,0.72280922]
[1721251174173,0.14293,64277.0,64276.0,0.10169048]
[1721251174391,0.14293,64277.0,64276.0,0.020913]
[1721251174392,0.298506,64277.0,64276.0,0.020913]
[1721251176451,0.14293,64277.0,64276.0,0.020913]
[1721251176655,0.3013,64277.0,64276.0,0.020913]
[1721251176911,0.298506,64277.0,64276.0,0.020913]
[1721251179722,0.609659,64277.0,64276.0,0.020913]
[1721251181144,0.14293,64277.0,64276.0,0.020913]
[1721251195537,0.00183,64277.0,64276.0,0.17529474]
[1721251195836,0.00183,64277.0,64276.0,0.20706421]
[1721251201294,0.14363,64277.0,64276.0,0.05268247]
[1721251201523,0.14363,64277.0,64276.0,0.020913]
[1721251204610,0.14363,64277.0,64276.0,0.020913]
[1721251205634,0.00183,64277.0,64276.0,0.020913]
[1721251223126,0.00183,64277.0,64276.0,0.17529474]
[1721251236453,0.04013,64280.0,64276.0,0.17529474]
[1721251236674,0.04013,64280.0,64277.0,0.21858641]
[1721251237688,0.04013,64280.0,64277.0,0.22558641]
[1721251239420,0.04013,64280.0,64277.0,0.23058641]
[1721251242497,0.0814,64282.0,64277.0,0.23058641]
[1721251243051,0.064194,64287.0,64278.0,0.1451]
[1721251243398,0.164194,64287.0,64279.0,0.08433384]
[1721251245066,0.167194,64287.0,64279.0,0.08433384]
[1721251245690,0.04603215,64285.0,64279.0,0.08433384]
[1721251246475,0.002794,64286.0,64279.0,0.08433384]
[1721251246678,0.04903215,64287.0,64280.0,0.46551674]
[1721251246883,0.003,64287.0,64281.0,0.24817743]
[1721251247889,0.12303215,64288.0,64281.0,0.24817743]
[1721251248365,0.12303215,64288.0,64281.0,0.09261143]
[1721251248366,0.077,64288.0,64281.0,0.09261143]
[1721251248625,0.077,64288.0,64282.0,0.1109191]
[1721251251656,0.077,64288.0,64282.0,0.1119191]
[1721251251883,0.077,64288.0,64282.0,0.1109191]
[1721251252116,0.077,64288.0,64282.0,0.1119191]
[1721251252346,0.077,64288.0,64282.0,0.1139191]
[1721251252543,0.077,64288.0,64283.0,0.08193507]
[1721251254765,0.077,64288.0,64283.0,0.08493507]
[1721251254879,0.077,64288.0,64283.0,0.08293507]
[1721251255282,0.077,64288.0,64283.0,0.08193507]
[1721251255537,0.08,64288.0,64283.0,0.08193507]
[1721251255747,0.08,64288.0,64284.0,0.04762217]
[1721251255945,0.077,64288.0,64284.0,0.04762217]
[1721251256385,0.08,64288.0,64284.0,0.04762217]
[1721251257645,0.077,64288.0,64284.0,0.04762217]
[1721251258096,0.08,64288.0,64284.0,0.04762217]
[1721251258223,0.08,64288.0,64285.0,0.02020039]
[1721251259029,0.077,64288.0,64285.0,0.02020039]
[1721251259228,0.07783,64288.0,64285.0,0.02020039]
[1721251259446,0.08083,64288.0,64285.0,0.02020039]
[1721251261046,0.00383,64288.0,64285.0,0.02020039]
[1721251261248,0.00383,64288.0,64286.0,0.01757664]
[1721251261462,0.00083,64288.0,64286.0,0.01757664]
[1721251261665,0.00183,64288.0,64286.0,0.01757664]
[1721251262100,0.00083,64288.0,64286.0,0.01757664]
[1721251262447,0.00083,64288.0,64286.0,0.02257664]
[1721251262695,0.00083,64288.0,64287.0,0.0183477]
[1721251264086,0.00083,64288.0,64287.0,0.0233477]
[1721251264479,0.00083,64288.0,64287.0,0.0303477]
[1721251265442,0.06453,64288.0,64287.0,0.0303477]
[1721251275735,0.00083,64288.0,64287.0,0.0303477]
[1721251291666,0.03836,64291.0,64287.0,0.0303477]
[1721251291869,0.03836,64291.0,64288.0,0.05172231]
[1721251294101,0.03836,64291.0,64288.0,0.05472231]
[1721251294558,0.13061443,64292.0,64288.0,0.05472231]
[1721251294804,0.19421443,64292.0,64288.0,0.05472231]
[1721251295274,0.19421443,64292.0,64288.0,0.05672231]
[1721251295482,0.00083,64291.0,64289.0,0.05628584]
[1721251295863,0.00083,64291.0,64288.0,0.002]
[1721251295864,0.1457,64290.0,64288.0,0.002]
[1721251296071,0.1457,64290.0,64288.0,0.003]
[1721251296474,0.1457,64290.0,64288.0,0.002]
[1721251296631,0.002794,64289.0,64288.0,0.002]
[1721251296836,0.002794,64289.0,64288.0,0.01968197]
[1721251297245,0.002794,64289.0,64288.0,0.01768197]
[1721251297867,0.002794,64289.0,64287.0,0.0192607]
[1721251298155,0.002794,64289.0,64288.0,0.003]
[1721251298577,0.002794,64289.0,64288.0,0.006]
[1721251298934,0.002794,64289.0,64287.0,0.0152607]
[1721251299145,0.002794,64289.0,64287.0,0.0182607]
[1721251299751,0.002794,64289.0,64288.0,0.002]
[1721251300765,0.002794,64289.0,64288.0,0.005]
[1721251301175,0.002794,64289.0,64288.0,0.003]
[1721251302366,0.002794,64289.0,64288.0,0.005]
[1721251305843,0.04886346,64289.0,64288.0,0.005]
[1721251306690,0.002794,64289.0,64288.0,0.005]
[1721251309531,0.04886711,64289.0,64288.0,0.005]
[1721251309730,0.002794,64289.0,64288.0,0.005]
[1721251310055,0.04886711,64289.0,64288.0,0.005]
[1721251311467,0.002794,64289.0,64288.0,0.005]
[1721251311661,0.04886751,64289.0,64288.0,0.005]
[1721251313563,0.04886751,64289.0,64288.0,0.002]
[1721251313740,0.002794,64289.0,64288.0,0.002]
[1721251313942,0.002794,64289.0,64288.0,0.003]
[1721251314308,0.002794,64289.0,64288.0,0.001]
[1721251314462,0.003794,64289.0,64288.0,0.001]
[1721251316837,0.159341,64289.0,64288.0,0.001]
[1721251317040,0.156547,64289.0,64288.0,0.001]
[1721251317618,0.159341,64289.0,64288.0,0.001]
[1721251318064,0.156547,64289.0,64288.0,0.001]
[1721251318487,1.40890679,64289.0,64288.0,0.001]
[1721251318634,1.55151036,64289.0,64288.0,0.001]
[1721251318844,2.08283993,64289.0,64288.0,0.001]
[1721251319040,2.61453733,64289.0,64288.0,0.001]
[1721251319241,2.63753733,64289.0,64288.0,0.001]
[1721251319443,2.48193028,64289.0,64288.0,0.001]
[1721251319644,2.48193028,64289.0,64287.0,0.000913]
[1721251319645,1.49347,64288.0,64287.0,0.000913]
[1721251319848,2.25108454,64288.0,64287.0,0.000913]
[1721251320073,0.1419,64256.0,64244.0,0.04669898]
[1721251320271,0.1419,64256.0,64245.0,0.2413045]
[1721251320272,0.155635,64253.0,64245.0,0.2413045]
[1721251320498,0.453158,64256.0,64245.0,0.2413045]
[1721251320499,0.1419,64256.0,64250.0,0.006233]
[1721251320752,0.155639,64251.0,64250.0,0.006233]
[1721251321046,0.878197,64251.0,64250.0,0.006233]
[1721251321378,0.155657,64244.0,64237.0,0.1412]
[1721251321579,0.155657,64244.0,64238.0,0.01412]
[1721251321931,0.1419,64243.0,64238.0,0.01412]
[1721251322301,0.297559,64243.0,64238.0,0.01412]
[1721251323524,0.297559,64243.0,64238.0,0.01912]
[1721251323902,0.155661,64242.0,64238.0,0.02212]
[1721251324115,0.155661,64242.0,64239.0,0.01765017]
[1721251326409,0.155664,64241.0,64239.0,0.02365017]
[1721251326579,0.311326,64242.0,64239.0,0.02365017]
[1721251326790,0.155665,64241.0,64239.0,0.02365017]
[1721251327227,0.155666,64240.0,64239.0,0.02365017]
[1721251327407,0.155666,64240.0,64239.0,0.01]
[1721251327607,0.155666,64240.0,64239.0,0.004]
[1721251328019,0.155666,64240.0,64239.0,0.007]
[1721251328227,0.155666,64240.0,64239.0,0.012]
[1721251328228,1.330062,64240.0,64239.0,0.012]
[1721251328429,1.641394,64240.0,64239.0,0.012]
[1721251328788,1.641394,64240.0,64239.0,0.007]
[1721251329193,1.089679,64239.0,64238.0,0.000913]
[1721251329393,1.189679,64239.0,64238.0,0.000913]
[1721251330228,1.330079,64239.0,64238.0,0.000913]
[1721251330611,1.331079,64239.0,64238.0,0.001913]
[1721251331454,1.340079,64239.0,64238.0,0.002913]
[1721251331881,2.23365474,64239.0,64238.0,0.002913]
[1721251332905,2.23365474,64239.0,64238.0,0.00284299]
[1721251333311,2.26913867,64239.0,64238.0,0.00284299]
[1721251337820,2.31913867,64239.0,64238.0,0.00284299]
[1721251338218,2.28365474,64239.0,64238.0,0.00284299]
[1721251338945,2.28365474,64239.0,64238.0,9.9e-07]
[1721251338946,2.59499174,64239.0,64238.0,9.9e-07]
[1721251339153,1.541677,64227.0,64226.0,0.000913]
[1721251339358,2.10745374,64227.0,64226.0,0.000913]
[1721251340158,2.10745374,64227.0,64222.0,0.009174]
[1721251340159,1.712777,64223.0,64222.0,0.009174]
[1721251340362,2.46249274,64223.0,64222.0,0.009174]
[1721251340542,2.68179666,64223.0,64222.0,0.009174]
[1721251341148,2.68179666,64223.0,64222.0,1e-06]
[1721251341608,2.68179666,64223.0,64222.0,0.002001]
[1721251341777,2.68179666,64223.0,64222.0,1e-06]
[1721251342842,2.72950453,64223.0,64222.0,1e-06]
[1721251343087,2.84036315,64223.0,64222.0,1e-06]
[1721251343286,2.84536315,64223.0,64222.0,1e-06]
[1721251343548,2.84036315,64223.0,64222.0,1e-06]
[1721251343745,2.68179666,64223.0,64222.0,1e-06]
[1721251343877,2.80861006,64223.0,64222.0,1e-06]
[1721251344481,2.76529382,64223.0,64222.0,1e-06]
[1721251344927,2.70393433,64223.0,64222.0,1e-06]
[1721251345226,2.80852677,64223.0,64222.0,1e-06]
[1721251345387,2.80852598,64223.0,64222.0,1e-06]
[1721251346189,0.467376,64188.0,64187.0,0.0656]
[1721251346413,0.467376,64188.0,64180.0,0.09994736]
[1721251346414,0.311562,64193.0,64181.0,0.1454]
[1721251346588,0.1308,64185.0,64182.0,0.15438174]
[1721251346804,0.155795,64187.0,64182.0,0.15438174]
[1721251347007,0.155795,64187.0,64183.0,0.0657]
[1721251347207,0.155797,64186.0,64184.0,0.03997291]
[1721251347413,0.155799,64185.0,64184.0,0.03997291]
[1721251347609,0.31159,64187.0,64184.0,0.03997291]
[1721251347810,0.155798,64186.0,64184.0,0.03997291]
[1721251348011,0.155798,64186.0,64185.0,0.0439702]
[1721251348608,0.778986,64186.0,64185.0,0.0439702]
[1721251348856,0.878986,64186.0,64185.0,0.0439702]
[1721251350074,0.879986,64186.0,64185.0,0.0439702]
[1721251350278,0.880986,64186.0,64185.0,0.0449702]
[1721251350728,0.569392,64186.0,64185.0,0.0449702]
[1721251351294,0.102,64186.0,64185.0,0.0449702]
[1721251351541,0.102,64186.0,64185.0,0.1246702]
[1721251351952,0.102,64186.0,64185.0,0.1903702]
[1721251352580,0.002,64186.0,64185.0,0.34475194]
[1721251353682,0.062403,64215.0,64194.0,0.311555]
[1721251353845,0.46304871,64201.0,64197.0,0.301169]
[1721251354046,0.311456,64215.0,64200.0,0.0657]
[1721251354243,0.155737,64211.0,64201.0,0.15438174]
[1721251354461,0.155737,64211.0,64202.0,0.0657]
[1721251354660,0.311467,64213.0,64203.0,0.04555487]
[1721251354661,0.155734,64212.0,64203.0,0.04555487]
[1721251355014,0.311424,64221.0,64206.0,0.155747]
[1721251355219,0.155722,64217.0,64207.0,0.15438174]
[1721251356668,0.01,64215.0,64207.0,0.15438174]
[1721251356844,0.160722,64217.0,64208.0,0.08125976]
[1721251356980,0.008,64217.0,64210.0,0.1454]
[1721251357380,0.108,64217.0,64210.0,0.29978174]
[1721251357600,0.008,64217.0,64210.0,0.29978174]
[1721251358011,0.008,64217.0,64211.0,0.15438174]
[1721251358230,0.008,64217.0,64212.0,0.08482715]
[1721251358433,0.003,64217.0,64212.0,0.23920889]
[1721251358642,0.255714,64220.0,64212.0,0.23920889]
[1721251358868,0.002,64215.0,64212.0,0.23920889]
[1721251359084,0.002,64215.0,64213.0,0.15438174]
[1721251359291,0.002,64217.0,64215.0,0.0657]
[1721251359495,0.002,64217.0,64216.0,0.15438174]
[1721251359694,0.002,64217.0,64216.0,0.45550574]
[1721251359989,0.311371,64232.0,64219.0,0.0657]
[1721251360197,0.9139535,64241.0,64220.0,0.23408174]
[1721251360400,0.9139535,64241.0,64221.0,0.12713386]
[1721251360401,0.155683,64233.0,64221.0,0.12713386]
[1721251360604,0.311352,64236.0,64222.0,0.15438174]
[1721251360605,0.155685,64232.0,64222.0,0.15438174]
[1721251360751,0.311358,64235.0,64222.0,0.15438174]
[1721251360952,0.155682,64234.0,64223.0,0.1454]
[1721251361184,0.311366,64233.0,64224.0,0.2372171]
[1721251361443,0.155688,64231.0,64224.0,0.15438174]
[1721251361607,0.1,64230.0,64224.0,0.15438174]
[1721251362845,0.1,64230.0,64224.0,0.15538174]
[1721251363056,0.1,64234.0,64224.0,0.31008574]
[1721251363262,0.155676,64236.0,64225.0,0.11397716]
[1721251363470,0.001,64230.0,64226.0,0.15438174]
[1721251363678,0.002794,64234.0,64226.0,0.15438174]
[1721251363888,0.001,64230.0,64226.0,0.15438174]
[1721251365169,0.002794,64234.0,64226.0,0.15438174]
[1721251365170,0.002794,64234.0,64227.0,0.1427]
[1721251365402,0.1,64235.0,64227.0,0.1427]
[1721251365403,0.1,64235.0,64228.0,0.21105803]
[1721251365660,0.1,64235.0,64229.0,0.063]
[1721251365884,0.1,64235.0,64230.0,0.15438174]
[1721251366818,0.1,64236.0,64230.0,0.15438174]
[1721251367045,0.1,64236.0,64231.0,0.0363758]
[1721251367497,0.1,64236.0,64231.0,0.19075754]
[1721251367725,0.1,64238.0,64231.0,0.19075754]
[1721251367953,0.155669,64239.0,64231.0,0.19075754]
[1721251368176,0.155671,64238.0,64232.0,0.05458288]
[1721251368396,0.1,64237.0,64232.0,0.05458288]
[1721251368635,0.1,64237.0,64233.0,0.03296409]
[1721251369827,0.101,64237.0,64233.0,0.03296409]
[1721251370050,0.101,64237.0,64233.0,0.03396409]
[1721251372460,0.001,64237.0,64233.0,0.03396409]
[1721251372679,0.1,64236.0,64233.0,0.03396409]
[1721251372862,0.1,64236.0,64234.0,0.02513458]
[1721251373641,0.101,64237.0,64234.0,0.02513458]
[1721251374285,0.1,64237.0,64234.0,0.02513458]
[1721251375271,0.255673,64237.0,64234.0,0.02513458]
[1721251375471,0.256673,64237.0,64234.0,0.02513458]
[1721251375592,0.256673,64237.0,64235.0,0.01795163]
[1721251377407,0.255673,64237.0,64235.0,0.01795163]
[1721251377739,0.256673,64237.0,64235.0,0.01795163]
[1721251378122,0.256673,64237.0,64235.0,0.01895163]
[1721251378123,0.778377,64236.0,64235.0,0.01895163]
[1721251378330,0.878377,64236.0,64235.0,0.001]
[1721251379424,0.155686,64232.0,64229.0,0.063]
[1721251381047,0.155686,64232.0,64229.0,0.067]
[1721251381362,0.155686,64232.0,64229.0,0.063]
[1721251381621,0.156686,64232.0,64229.0,0.07]
[1721251381770,0.156686,64232.0,64230.0,0.01497]
[1721251381965,0.155686,64232.0,64230.0,0.01497]
[1721251382789,0.002794,64231.0,64230.0,0.01497]
[1721251383788,0.155686,64232.0,64230.0,0.01697]
[1721251383989,0.002794,64231.0,64230.0,0.01697]
[1721251384206,0.155688,64231.0,64230.0,0.02097]
[1721251384409,0.155688,64231.0,64230.0,0.01897]
[1721251384752,0.155688,64231.0,64230.0,0.01797]
[1721251384954,0.155688,64231.0,64230.0,0.02297]
[1721251385114,0.155688,64231.0,64230.0,0.01497]
[1721251385461,0.156688,64231.0,64230.0,0.01597]
[1721251386639,1.090816,64231.0,64230.0,0.01597]
[1721251386839,1.228516,64231.0,64230.0,0.001]
[1721251387771,1.328516,64231.0,64230.0,0.001]
[1721251388043,1.49451953,64231.0,64230.0,0.001]
[1721251388218,1.80589553,64231.0,64230.0,0.001]
[1721251390597,1.69893069,64231.0,64230.0,0.001]
[1721251390809,2.29421756,64231.0,64230.0,0.001]
[1721251391026,1.92380287,64231.0,64230.0,0.001]
[1721251391233,1.98090578,64231.0,64230.0,0.001]
[1721251391439,2.01533822,64231.0,64230.0,0.001]
[1721251391659,2.01433822,64231.0,64230.0,0.001]
[1721251391887,0.155737,64211.0,64204.0,0.0626]
[1721251392090,0.15574,64210.0,64205.0,0.18384804]
[1721251393169,0.311466,64213.0,64205.0,0.0294663]
[1721251393381,0.312473,64211.0,64204.0,0.014]
[1721251393588,0.467253,64205.0,64204.0,0.014]
[1721251393789,0.155755,64204.0,64200.0,0.0604]
[1721251393990,0.155755,64204.0,64201.0,0.16865174]
[1721251394517,0.311502,64205.0,64201.0,0.16865174]
[1721251394518,0.155758,64202.0,64201.0,0.16865174]